bitfinex/quotes_BTCUSD_20240715
["timestamp","ask_amount","ask_price","bid_price","bid_amount"]
[1721052125017,0.00083,63071.0,63070.0,0.61189239]
[1721052126264,0.00083,63071.0,63070.0,0.41189239]
[1721052126588,0.00083,63071.0,63070.0,0.61189239]
[1721052126784,0.00083,63071.0,63070.0,1.04899939]
[1721052127370,0.00083,63071.0,63070.0,1.68321339]
[1721052127571,0.00083,63071.0,63070.0,1.78321339]
[1721052127974,0.00083,63071.0,63070.0,1.46610639]
[1721052128978,0.00083,63071.0,63070.0,1.34610639]
[1721052129173,0.00083,63071.0,63070.0,1.46610639]
[1721052129991,0.00083,63071.0,63070.0,1.14610639]
[1721052130579,0.00083,63071.0,63070.0,1.34610639]
[1721052130998,0.00083,63071.0,63070.0,1.46581952]
[1721052132269,0.00083,63071.0,63070.0,1.34581952]
[1721052133617,0.00083,63071.0,63070.0,1.46581952]
[1721052134608,0.00083,63071.0,63070.0,1.34581952]
[1721052134779,0.00083,63071.0,63070.0,1.46673252]
[1721052135705,0.00083,63071.0,63070.0,1.34673252]
[1721052137397,0.00083,63071.0,63070.0,0.15425239]
[1721052137683,0.476483,63071.0,63070.0,0.01205239]
[1721052137892,0.80406521,63071.0,63070.0,0.01205239]
[1721052138102,0.84191039,63071.0,63070.0,0.01205239]
[1721052138304,0.12958812,63071.0,63070.0,0.01205239]
[1721052138438,0.10580492,63071.0,63070.0,0.01205239]
[1721052138638,0.08202875,63071.0,63070.0,0.00505239]
[1721052139048,0.16926121,63071.0,63070.0,0.000913]
[1721052139298,0.01871021,63071.0,63070.0,0.001913]
[1721052139505,0.17726121,63071.0,63070.0,0.001913]
[1721052139695,0.61324112,63071.0,63070.0,0.001913]
[1721052139921,0.50036321,63071.0,63070.0,0.002913]
[1721052140117,1.15816721,63071.0,63070.0,0.002913]
[1721052140398,1.15816721,63071.0,63070.0,0.001913]
[1721052140399,1.15016757,63071.0,63070.0,0.001913]
[1721052140597,1.15016757,63071.0,63070.0,0.000913]
[1721052140598,1.139287,63071.0,63070.0,0.000913]
[1721052140797,1.14916772,63071.0,63070.0,0.000913]
[1721052141041,1.14616772,63071.0,63070.0,0.00062613]
[1721052141395,1.14416772,63071.0,63070.0,0.00062613]
[1721052142039,1.15116772,63071.0,63070.0,0.00162613]
[1721052142622,1.15716772,63071.0,63070.0,0.00262613]
[1721052142824,1.15116772,63071.0,63070.0,0.00162613]
[1721052143270,1.15116772,63071.0,63070.0,0.00262613]
[1721052143271,1.15916772,63071.0,63070.0,0.00262613]
[1721052143473,1.34000377,63071.0,63070.0,0.00262613]
[1721052143657,1.19740297,63071.0,63070.0,0.00262613]
[1721052144039,1.33997824,63071.0,63070.0,0.00162613]
[1721052144237,1.32497824,63071.0,63070.0,0.00062613]
[1721052144475,1.19040297,63071.0,63070.0,0.00162613]
[1721052144642,1.19640297,63071.0,63070.0,0.00262613]
[1721052145242,1.19640297,63071.0,63070.0,0.00162613]
[1721052145243,1.19040297,63071.0,63070.0,0.00162613]
[1721052145447,0.8344662,63071.0,63070.0,0.00162613]
[1721052145646,0.8324662,63071.0,63070.0,0.00162613]
[1721052145848,0.8324662,63071.0,63070.0,0.00262613]
[1721052146050,0.09597074,63071.0,63070.0,0.36117913]
[1721052146249,0.01483,63071.0,63070.0,1.21410626]
[1721052146432,0.01483,63071.0,63070.0,0.77799926]
[1721052146433,0.02283,63071.0,63070.0,0.77799926]
[1721052146633,0.02283,63071.0,63070.0,0.10233926]
[1721052146879,0.181381,63071.0,63070.0,0.10233926]
[1721052147340,0.476483,63071.0,63070.0,0.10033926]
[1721052147684,0.482483,63071.0,63070.0,0.10533926]
[1721052147925,0.55373455,63071.0,63070.0,0.10533926]
[1721052148130,0.54773455,63071.0,63070.0,0.10433926]
[1721052148457,0.54773455,63071.0,63070.0,0.00462613]
[1721052148745,0.52398831,63071.0,63070.0,0.10533926]
[1721052148886,0.793585,63071.0,63070.0,0.00062613]
[1721052149089,0.816585,63071.0,63070.0,0.00062613]
[1721052149289,0.91158707,63071.0,63070.0,0.00062613]
[1721052149707,1.22869781,63071.0,63070.0,0.00062613]
[1721052150073,1.135687,63071.0,63070.0,0.00062613]
[1721052150247,1.23069491,63071.0,63070.0,0.00062613]
[1721052150446,1.135687,63071.0,63070.0,0.00062613]
[1721052150654,1.133687,63071.0,63070.0,0.00062613]
[1721052150980,1.26933091,63071.0,63070.0,0.00162613]
[1721052151120,1.26933091,63071.0,63070.0,0.00133926]
[1721052151528,1.1505674,63071.0,63070.0,0.00133926]
[1721052152195,1.6505674,63071.0,63070.0,0.00133926]
[1721052152760,2.20028888,63071.0,63070.0,0.00133926]
[1721052152961,2.10663642,63071.0,63070.0,0.00133926]
[1721052153161,2.11295091,63071.0,63070.0,0.00133926]
[1721052153362,2.27328302,63071.0,63070.0,0.00133926]
[1721052153563,2.11295091,63071.0,63070.0,0.00133926]
[1721052153907,2.10595091,63071.0,63070.0,0.00033926]
[1721052154114,2.10595091,63071.0,63070.0,0.00133926]
[1721052154374,2.11295091,63071.0,63070.0,0.00133926]
[1721052154556,2.09995091,63071.0,63070.0,0.00033926]
[1721052155347,2.24838293,63071.0,63070.0,0.00133926]
[1721052155691,2.10595091,63071.0,63070.0,0.00133926]
[1721052155799,2.1144488,63071.0,63070.0,0.00133926]
[1721052156007,2.1204488,63071.0,63070.0,0.00233926]
[1721052156204,2.24886221,63071.0,63070.0,0.00133926]
[1721052156482,1.7033468,63071.0,63070.0,0.00233926]
[1721052156674,1.66416852,63071.0,63070.0,0.00233926]
[1721052156890,1.15016852,63071.0,63070.0,0.00133926]
[1721052157091,1.79622848,63071.0,63070.0,0.00133926]
[1721052157465,1.78222848,63071.0,63070.0,0.00033926]
[1721052157678,1.79622848,63071.0,63070.0,0.00133926]
[1721052157875,1.93864189,63071.0,63070.0,0.00133926]
[1721052158081,2.25574389,63071.0,63070.0,0.00133926]
[1721052158289,1.79622848,63071.0,63070.0,0.00133926]
[1721052159016,1.78822848,63071.0,63070.0,0.00133926]
[1721052159399,2.11333048,63071.0,63070.0,0.00133926]
[1721052159598,2.09933048,63071.0,63070.0,0.00033926]
[1721052159800,2.10533048,63071.0,63070.0,0.00133926]
[1721052159998,2.11933048,63071.0,63070.0,0.00233926]
[1721052160541,2.25567317,63071.0,63070.0,0.00133926]
[1721052160937,2.26167317,63071.0,63070.0,0.00233926]
[1721052161138,1.94457117,63071.0,63070.0,0.00205256]
[1721052161461,1.80222848,63071.0,63070.0,0.00205256]
[1721052161640,1.80245847,63071.0,63070.0,0.00205256]
[1721052161865,1.80245997,63071.0,63070.0,0.00205256]
[1721052162046,1.30245997,63071.0,63070.0,0.00205256]
[1721052162266,1.753687,63071.0,63070.0,0.00205256]
[1721052162465,1.79633117,63071.0,63070.0,0.00105256]
[1721052163063,1.80233117,63071.0,63070.0,0.00205256]
[1721052164540,1.94465787,63071.0,63070.0,0.00205256]
[1721052164745,2.26175987,63071.0,63070.0,0.00205256]
[1721052165629,2.11936506,63071.0,63070.0,0.00205256]
[1721052165840,1.94457984,63071.0,63070.0,0.00205256]
[1721052166045,1.80226301,63071.0,63070.0,0.00205256]
[1721052166243,2.11936501,63071.0,63070.0,0.00205256]
[1721052166643,1.80226301,63071.0,63070.0,0.00205256]
[1721052167053,2.11936501,63071.0,63070.0,0.00205256]
[1721052167904,2.26167878,63071.0,63070.0,0.00205256]
[1721052168338,2.26444076,63071.0,63070.0,0.00205256]
[1721052168535,2.07355098,63071.0,63070.0,0.00205256]
[1721052168739,2.26398311,63071.0,63070.0,0.00205256]
[1721052168866,2.2639831,63071.0,63070.0,0.00205256]
[1721052169266,1.80456254,63071.0,63070.0,0.00205256]
[1721052169684,2.12166454,63071.0,63070.0,0.00205256]
[1721052170085,2.2639831,63071.0,63070.0,0.00205256]
[1721052171237,2.12166454,63071.0,63070.0,0.0018119]
[1721052171448,2.2639831,63071.0,63070.0,0.0018119]
[1721052171830,2.07355098,63071.0,63070.0,0.0018119]
[1721052172008,2.26392472,63071.0,63070.0,0.0018119]
[1721052173663,2.12162094,63071.0,63070.0,0.0018119]
[1721052174658,2.26392472,63071.0,63070.0,0.0018119]
[1721052175009,2.07355098,63071.0,63070.0,0.0018119]
[1721052175206,2.12161598,63071.0,63070.0,0.0018119]
[1721052178403,2.12179354,63071.0,63070.0,0.0018119]
[1721052178575,2.07355098,63071.0,63070.0,0.0018119]
[1721052178775,2.12179374,63071.0,63070.0,0.0018119]
[1721052179979,2.38918061,63071.0,63070.0,0.0018119]
[1721052180176,2.78189253,63071.0,63070.0,0.0018119]
[1721052180359,2.78379852,63071.0,63070.0,0.0018119]
[1721052180557,2.62168061,63071.0,63070.0,0.0018119]
[1721052180785,2.93878261,63071.0,63070.0,0.0018119]
[1721052180995,2.93882279,63071.0,63070.0,0.0018119]
[1721052182114,2.12112079,63071.0,63070.0,0.0018119]
[1721052182314,2.38893392,63071.0,63070.0,0.0018119]
[1721052182596,2.38214667,63071.0,63070.0,0.0018119]
[1721052182797,2.19912079,63071.0,63070.0,0.0018119]
[1721052183425,1.69883392,63071.0,63070.0,0.0018119]
[1721052183603,2.19883392,63071.0,63070.0,0.0018119]
[1721052183772,1.59906423,63071.0,63070.0,0.0018119]
[1721052184138,2.09906423,63071.0,63070.0,0.0018119]
[1721052184403,1.62206423,63071.0,63070.0,0.0018119]
[1721052185507,2.12206423,63071.0,63070.0,0.0018119]
[1721052186670,1.62206423,63071.0,63070.0,0.0018119]
[1721052186894,1.30487664,63071.0,63070.0,0.0018119]
[1721052187143,0.57067264,63071.0,63070.0,0.0018119]
[1721052187321,0.15228587,63071.0,63070.0,0.1438119]
[1721052187523,0.12576028,63071.0,63070.0,0.1438119]
[1721052187727,0.10199121,63071.0,63070.0,0.1438119]
[1721052188067,0.03071147,63071.0,63070.0,0.1438119]
[1721052188451,0.08798585,63071.0,63070.0,0.143]
[1721052188864,0.08198585,63071.0,63070.0,0.142]
[1721052189443,0.08198585,63071.0,63070.0,0.91737313]
[1721052189444,0.01071147,63071.0,63070.0,0.91737313]
[1721052189649,0.01071147,63071.0,63070.0,0.71737313]
[1721052189846,0.01071147,63071.0,63070.0,0.40026613]
[1721052190051,0.00083,63071.0,63070.0,0.40304279]
[1721052190249,0.01070945,63071.0,63070.0,0.72014979]
[1721052190428,0.01083,63071.0,63070.0,1.04114979]
[1721052190667,0.01083,63071.0,63070.0,0.24171313]
[1721052190668,0.0107094,63071.0,63070.0,0.24171313]
[1721052191164,0.0107094,63071.0,63070.0,0.24571313]
[1721052191384,0.05821603,63071.0,63070.0,0.24171313]
[1721052191593,0.0107094,63071.0,63070.0,0.24171313]
[1721052191767,0.0107094,63071.0,63070.0,0.24471313]
[1721052191964,0.0107094,63071.0,63070.0,0.24171313]
[1721052192396,0.0107094,63071.0,63070.0,0.24271313]
[1721052192397,0.0147094,63071.0,63070.0,0.24271313]
[1721052192601,0.06221603,63071.0,63070.0,0.40126613]
[1721052192802,0.0107094,63071.0,63070.0,0.60026613]
[1721052192998,0.0107094,63071.0,63070.0,0.60126613]
[1721052193200,0.01070933,63071.0,63070.0,0.40126613]
[1721052193641,0.01070933,63071.0,63070.0,0.40026613]
[1721052193999,0.01070933,63071.0,63070.0,0.40526613]
[1721052194196,0.01070933,63071.0,63070.0,0.60226613]
[1721052194342,0.01070933,63071.0,63070.0,1.03937313]
[1721052194547,0.01070933,63071.0,63070.0,0.40226613]
[1721052194965,0.00083,63071.0,63070.0,0.40226613]
[1721052195169,0.00083,63071.0,63070.0,0.40026613]
[1721052195170,0.01070927,63071.0,63070.0,0.40026613]
[1721052195491,0.01070927,63071.0,63070.0,0.40126613]
[1721052195647,0.00083,63071.0,63070.0,0.71837313]
[1721052196057,0.00083,63071.0,63070.0,0.71737313]
[1721052196260,0.00083,63071.0,63070.0,1.35448013]
[1721052196472,0.00083,63071.0,63070.0,1.35848013]
[1721052197385,0.063535,63079.0,63078.0,0.3413]
[1721052197895,0.11100198,63079.0,63078.0,0.1413]
[1721052198315,0.063535,63079.0,63078.0,0.1413]
[1721052199547,0.066535,63079.0,63078.0,0.1413]
[1721052200176,0.068535,63079.0,63078.0,0.1413]
[1721052200575,0.068535,63079.0,63078.0,1.03661313]
[1721052200576,0.005,63079.0,63078.0,1.03661313]
[1721052201762,0.028,63079.0,63078.0,1.03661313]
[1721052201970,0.028,63079.0,63078.0,1.35368013]
[1721052202216,0.04774049,63089.0,63083.0,0.0777]
[1721052202408,0.09490724,63092.0,63080.0,0.12]
[1721052202409,0.063526,63092.0,63091.0,0.73671513]
[1721052202619,0.00833,63103.0,63102.0,0.72638613]
[1721052202820,0.00833,63103.0,63102.0,0.95828613]
[1721052203039,0.00833,63103.0,63102.0,1.27523313]
[1721052203256,0.00833,63103.0,63102.0,1.15523313]
[1721052203436,0.00833,63103.0,63102.0,1.24028013]
[1721052204064,0.00833,63103.0,63102.0,1.04028013]
[1721052204268,0.00833,63103.0,63102.0,1.24028013]
[1721052204401,0.00833,63103.0,63102.0,1.04028013]
[1721052204803,0.00833,63103.0,63102.0,1.24028013]
[1721052205021,0.00833,63103.0,63102.0,1.04028013]
[1721052205228,0.00833,63103.0,63102.0,1.04128013]
[1721052205431,0.00933,63103.0,63102.0,1.24828013]
[1721052205603,0.00833,63103.0,63102.0,1.36028013]
[1721052206038,0.00833,63103.0,63102.0,1.36328013]
[1721052206258,0.00833,63103.0,63102.0,1.36228013]
[1721052206593,0.001,63109.0,63102.0,1.36228013]
[1721052206594,0.001,63109.0,63108.0,1.03548813]
[1721052208095,0.001,63109.0,63108.0,1.35240513]
[1721052208615,0.001,63109.0,63108.0,1.03848813]
[1721052208819,0.001,63109.0,63108.0,1.04248813]
[1721052210027,0.001,63109.0,63108.0,0.24711313]
[1721052210230,0.001,63109.0,63108.0,0.72557113]
[1721052210463,0.00833,63114.0,63108.0,0.72557113]
[1721052210464,0.023,63120.0,63119.0,0.2]
[1721052210624,0.001,63129.0,63128.0,0.83493713]
[1721052210817,0.00833,63131.0,63130.0,1.66913413]
[1721052210818,0.00433,63131.0,63130.0,1.66913413]
[1721052211028,0.00433,63131.0,63130.0,0.39871613]
[1721052211282,0.00433,63131.0,63130.0,0.24031313]
[1721052211510,0.00433,63131.0,63130.0,0.1406]
[1721052212346,0.00433,63131.0,63130.0,0.14337666]
[1721052212517,0.00433,63131.0,63130.0,0.1406]
[1721052212727,0.00433,63131.0,63130.0,0.299003]
[1721052213070,0.01033,63131.0,63130.0,0.299003]
[1721052213486,0.00433,63131.0,63130.0,0.615809]
[1721052213687,0.01333,63131.0,63130.0,0.300003]
[1721052213974,0.01333,63131.0,63130.0,0.616809]
[1721052214103,0.01333,63131.0,63130.0,0.933615]
[1721052214303,0.01333,63131.0,63130.0,1.34913413]
[1721052214623,0.01333,63131.0,63130.0,0.71552213]
[1721052215229,0.00433,63131.0,63130.0,0.71452213]
[1721052215455,0.00433,63131.0,63130.0,1.03332813]
[1721052215867,0.00433,63131.0,63130.0,0.24131313]
[1721052216224,0.00433,63131.0,63130.0,0.23931313]
[1721052216432,0.00433,63131.0,63130.0,0.39771613]
[1721052216639,0.00433,63131.0,63130.0,0.40271613]
[1721052216840,0.00433,63131.0,63130.0,0.39771613]
[1721052217041,0.02733,63131.0,63130.0,0.39771613]
[1721052217262,0.02733,63131.0,63129.0,0.00277666]
[1721052217263,0.00433,63131.0,63129.0,0.56759096]
[1721052217462,0.00433,63131.0,63130.0,1.35352813]
[1721052217644,0.00433,63131.0,63130.0,1.73331468]
[1721052217843,0.00433,63131.0,63130.0,1.89743259]
[1721052218075,0.00433,63131.0,63130.0,1.03750701]
[1721052218276,0.00933,63131.0,63130.0,1.41850868]
[1721052218477,0.316731,63145.0,63130.0,1.41850868]
[1721052218478,0.00028687,63147.0,63142.0,0.36251313]
[1721052218651,0.001,63149.0,63142.0,0.60259926]
[1721052218863,0.001,63149.0,63142.0,1.23609126]
[1721052219102,0.001,63149.0,63142.0,0.91934526]
[1721052219305,0.001,63149.0,63142.0,0.71934526]
[1721052219689,0.316724,63147.0,63142.0,0.1458]
[1721052219894,0.08105238,63146.0,63142.0,0.1458]
[1721052220256,0.03237446,63143.0,63142.0,0.1468]
[1721052220458,0.03237446,63143.0,63142.0,0.305173]
[1721052220757,0.05537446,63143.0,63142.0,0.60359926]
[1721052221017,0.03237446,63143.0,63142.0,1.45920917]
[1721052221219,0.03237446,63143.0,63142.0,1.35680439]
[1721052221430,0.03237446,63143.0,63142.0,0.60331239]
[1721052221775,0.03237446,63143.0,63142.0,1.23680439]
[1721052221979,0.03237446,63143.0,63142.0,1.35680439]
[1721052222204,0.01937446,63143.0,63142.0,1.67255039]
[1721052222686,0.01937446,63143.0,63142.0,1.35580439]
[1721052223018,0.01937446,63143.0,63142.0,1.35780439]
[1721052223220,0.01937446,63143.0,63142.0,1.03780439]
[1721052223507,0.01937446,63143.0,63142.0,1.24380439]
[1721052223623,0.01937446,63143.0,63142.0,1.25380439]
[1721052223829,0.01937446,63143.0,63142.0,1.24580439]
[1721052224075,0.01937446,63143.0,63142.0,1.23580439]
[1721052224340,0.01937446,63143.0,63142.0,0.40931239]
[1721052224605,0.49448546,63143.0,63142.0,0.007]
[1721052224903,0.20074446,63143.0,63142.0,0.007]
[1721052225379,0.83422646,63143.0,63142.0,0.014]
[1721052225551,0.51748546,63143.0,63142.0,0.007]
[1721052225759,0.35911546,63143.0,63138.0,0.09842626]
[1721052226096,0.158377,63141.0,63138.0,0.09842626]
[1721052226323,0.158383,63138.0,63137.0,0.16172626]
[1721052226514,0.158383,63138.0,63130.0,0.06567666]
[1721052226515,0.1584,63131.0,63130.0,0.06567666]
[1721052226704,0.1584,63131.0,63130.0,0.00277666]
[1721052226912,0.815002,63131.0,63130.0,0.00277666]
[1721052227135,0.815002,63131.0,63116.0,0.0629]
[1721052227136,0.475306,63117.0,63116.0,0.0629]
[1721052227451,0.0649,63130.0,63114.0,0.18102626]
[1721052227452,0.15844,63115.0,63114.0,0.18102626]
[1721052227655,0.2319,63124.0,63111.0,0.0629]
[1721052227861,0.475344,63112.0,63111.0,0.0629]
[1721052228069,0.316896,63112.0,63108.0,0.0751]
[1721052228382,0.08105238,63118.0,63103.0,0.0652]
[1721052228383,0.158468,63104.0,63103.0,0.0652]
[1721052228567,0.158465,63106.0,63103.0,0.0652]
[1721052228863,0.00028687,63104.0,63103.0,0.2652]
[1721052228995,0.00028687,63104.0,63103.0,0.0652]
[1721052229197,0.00028687,63108.0,63103.0,0.2652]
[1721052229393,0.00028687,63108.0,63107.0,0.32]
[1721052229394,0.02328687,63108.0,63107.0,0.32]
[1721052229662,0.00028687,63108.0,63107.0,0.57688726]
[1721052229908,0.31295238,63132.0,63114.0,0.2]
[1721052229909,0.316842,63123.0,63114.0,0.2]
[1721052230054,0.158429,63120.0,63113.0,0.358445]
[1721052230260,0.31685,63122.0,63108.0,0.31968966]
[1721052230261,0.08105238,63116.0,63108.0,0.10120292]
[1721052230467,0.08105238,63116.0,63103.0,0.0652]
[1721052230468,0.316917,63108.0,63104.0,0.09842626]
[1721052230664,0.158458,63108.0,63107.0,0.09842626]
[1721052230866,0.00028687,63115.0,63108.0,0.09842626]
[1721052230867,0.158447,63113.0,63108.0,0.09842626]
[1721052231041,0.158447,63113.0,63106.0,0.2]
[1721052231042,0.02328687,63112.0,63109.0,0.09842626]
[1721052231247,0.02328687,63112.0,63107.0,0.2]
[1721052231248,0.02328687,63112.0,63107.0,0.29842626]
[1721052231445,0.02328687,63112.0,63109.0,0.09842626]
[1721052231645,0.00028687,63112.0,63109.0,0.09842626]
[1721052231842,0.02328687,63112.0,63109.0,0.09842626]
[1721052232044,0.181448,63112.0,63109.0,0.09842626]
[1721052232490,0.023,63112.0,63109.0,0.09842626]
[1721052233013,0.158444,63114.0,63109.0,0.09842626]
[1721052233175,0.007,63112.0,63109.0,0.09942626]
[1721052233371,0.158446,63113.0,63109.0,0.09842626]
[1721052233577,0.023,63112.0,63109.0,0.09842626]
[1721052233781,0.00028687,63111.0,63109.0,0.09942626]
[1721052234214,0.00028687,63111.0,63110.0,0.32]
[1721052234415,0.00028687,63114.0,63111.0,0.158449]
[1721052234611,0.00028687,63120.0,63116.0,0.158437]
[1721052234765,0.158422,63123.0,63116.0,0.158437]
[1721052234766,0.00028687,63122.0,63116.0,0.158437]
[1721052234968,0.00028687,63122.0,63112.0,0.09842626]
[1721052234969,0.158444,63114.0,63112.0,0.09842626]
[1721052235154,0.08105238,63118.0,63112.0,0.09842626]
[1721052235155,0.158442,63115.0,63112.0,0.09842626]
[1721052235351,0.158443,63114.0,63112.0,0.09842626]
[1721052235556,0.158441,63115.0,63112.0,0.09842626]
[1721052235749,0.00128687,63113.0,63112.0,0.09842626]
[1721052236313,0.00128687,63113.0,63110.0,0.09842626]
[1721052236314,0.00028687,63113.0,63110.0,0.09842626]
[1721052236552,0.00028687,63113.0,63112.0,0.09942626]
[1721052236736,0.00028687,63113.0,63112.0,0.09842626]
[1721052237102,0.00128687,63113.0,63112.0,0.09842626]
[1721052237281,0.001,63113.0,63112.0,0.09842626]
[1721052237559,0.023,63115.0,63112.0,0.09842626]
[1721052237703,0.00028687,63114.0,63112.0,0.09842626]
[1721052237914,0.00028687,63114.0,63113.0,1.67164426]
[1721052238125,0.31682,63128.0,63118.0,0.158432]
[1721052238322,0.08133925,63129.0,63116.0,0.41529926]
[1721052238323,0.158424,63122.0,63119.0,0.00277666]
[1721052238550,0.158424,63122.0,63117.0,0.00277666]
[1721052239074,0.158426,63121.0,63115.0,0.25686626]
[1721052239386,0.023,63120.0,63116.0,0.09842626]
[1721052239552,0.023,63120.0,63118.0,0.001]
[1721052239748,0.001,63122.0,63121.0,0.25685126]
[1721052240314,0.316789,63134.0,63125.0,0.09842626]
[1721052240315,0.08133925,63132.0,63125.0,0.09842626]
[1721052240521,0.31681,63130.0,63126.0,0.09842626]
[1721052240730,0.158411,63127.0,63126.0,0.09842626]
[1721052240925,0.31710187,63129.0,63126.0,0.09842626]
[1721052240926,0.158408,63128.0,63126.0,0.09842626]
[1721052241132,0.00028687,63129.0,63126.0,0.09842626]
[1721052241133,0.15869187,63129.0,63126.0,0.09842626]
[1721052241273,0.158404,63130.0,63125.0,0.158415]
[1721052241473,0.158404,63130.0,63126.0,0.09842626]
[1721052241671,0.158393,63134.0,63129.0,0.25683026]
[1721052241852,0.158393,63134.0,63128.0,0.2]
[1721052241853,0.39781538,63139.0,63130.0,0.41800892]
[1721052242055,0.39781538,63139.0,63131.0,0.158399]
[1721052242361,0.158388,63136.0,63132.0,0.00277666]
[1721052242590,0.00028687,63135.0,63132.0,0.00277666]
[1721052242798,0.00028687,63135.0,63122.0,0.12]
[1721052242799,0.00028687,63135.0,63134.0,0.24012626]
[1721052243010,0.158376,63141.0,63134.0,0.91530526]
[1721052243212,0.00028687,63142.0,63139.0,0.09842626]
[1721052243213,0.15866087,63142.0,63139.0,0.09842626]
[1721052243433,0.01937446,63143.0,63139.0,0.09742626]
[1721052243638,0.01937446,63143.0,63139.0,0.25580626]
[1721052243890,0.01937446,63143.0,63139.0,1.20932826]
[1721052244126,0.01937446,63143.0,63139.0,0.88232826]
[1721052244601,0.01937446,63143.0,63139.0,1.08232826]
[1721052244799,0.01937446,63143.0,63139.0,0.88232826]
[1721052244949,0.01937446,63143.0,63139.0,1.45908926]
[1721052245187,0.01937446,63143.0,63139.0,1.58078926]
[1721052245391,0.01937446,63143.0,63139.0,1.65918926]
[1721052245739,0.01937446,63143.0,63139.0,1.33918926]
[1721052245943,0.01937446,63143.0,63139.0,1.66018926]
[1721052246630,0.01937446,63143.0,63139.0,1.66918926]
[1721052246832,0.01937446,63143.0,63139.0,1.76918926]
[1721052247066,0.01937446,63143.0,63139.0,1.77918926]
[1721052247824,0.01937446,63143.0,63139.0,1.45918926]
[1721052248034,0.01937446,63143.0,63139.0,1.77918926]
[1721052248487,0.01937446,63143.0,63139.0,1.45918926]
[1721052249042,0.01937446,63143.0,63139.0,0.35052626]
[1721052249272,0.023,63142.0,63139.0,0.50890626]
[1721052249466,0.023,63142.0,63139.0,0.35052626]
[1721052249760,0.023,63142.0,63139.0,0.70890626]
[1721052249959,0.023,63142.0,63139.0,0.25052626]
[1721052250397,0.023,63142.0,63139.0,0.11042626]
[1721052250398,0.159208,63140.0,63139.0,0.11042626]
[1721052250771,0.159208,63140.0,63139.0,0.02]
[1721052250772,0.81572,63140.0,63139.0,0.02]
[1721052252091,0.81572,63140.0,63139.0,0.01]
[1721052252289,0.81572,63140.0,63139.0,0.011]
[1721052252290,1.132476,63140.0,63139.0,0.011]
[1721052252638,1.133476,63140.0,63139.0,0.011]
[1721052252874,1.133476,63140.0,63139.0,0.001]
[1721052252875,1.468232,63140.0,63139.0,0.001]
[1721052253096,1.152476,63140.0,63139.0,0.001]
[1721052253333,0.02583,63140.0,63139.0,0.001]
[1721052253559,0.00183,63140.0,63139.0,0.76656726]
[1721052253705,0.00183,63140.0,63139.0,0.24980626]
[1721052253916,0.00183,63140.0,63139.0,0.44980626]
[1721052254123,0.00183,63140.0,63139.0,0.76756726]
[1721052254511,0.00083,63140.0,63139.0,0.76656726]
[1721052255113,0.00083,63140.0,63139.0,1.33908926]
[1721052255517,0.00183,63140.0,63139.0,1.66008926]
[1721052255714,0.00183,63140.0,63139.0,1.22332826]
[1721052255940,0.00083,63140.0,63139.0,1.22232826]
[1721052256160,0.00183,63140.0,63139.0,1.22232826]
[1721052256562,0.00183,63140.0,63139.0,1.34732826]
[1721052256563,0.00083,63140.0,63139.0,1.34732826]
[1721052256716,0.00083,63140.0,63139.0,1.34232826]
[1721052256935,0.00083,63140.0,63139.0,0.09842626]
[1721052256936,0.475964,63140.0,63139.0,0.09842626]
[1721052257300,0.00083,63140.0,63139.0,0.10642626]
[1721052257579,0.00083,63140.0,63139.0,0.016]
[1721052257580,0.81572,63140.0,63139.0,0.016]
[1721052258007,1.1306168,63140.0,63139.0,0.016]
[1721052258416,1.1496168,63140.0,63139.0,0.016]
[1721052258614,0.8138608,63140.0,63139.0,0.016]
[1721052259039,0.023,63140.0,63139.0,0.008]
[1721052259241,0.01937446,63143.0,63140.0,0.0612]
[1721052259536,0.00028687,63142.0,63140.0,0.0612]
[1721052259912,0.15866087,63142.0,63140.0,0.0612]
[1721052260116,0.158375,63141.0,63140.0,0.0612]
[1721052260516,0.15866187,63141.0,63140.0,0.0612]
[1721052260719,0.00028687,63141.0,63140.0,0.0612]
[1721052260920,0.15866187,63141.0,63140.0,0.0612]
[1721052261121,0.475134,63140.0,63139.0,0.001]
[1721052261333,1.108646,63140.0,63139.0,0.001]
[1721052261528,1.131646,63140.0,63139.0,0.001]
[1721052263731,1.132646,63140.0,63139.0,0.001]
[1721052263938,1.131646,63140.0,63139.0,0.001]
[1721052264342,0.81489,63140.0,63139.0,0.001]
[1721052265363,0.81689,63140.0,63139.0,0.001]
[1721052266211,1.133646,63140.0,63139.0,0.001]
[1721052266674,1.133646,63140.0,63126.0,0.20277666]
[1721052266675,0.2089,63140.0,63128.0,0.00277666]
[1721052266843,0.2089,63140.0,63105.0,0.03178]
[1721052266844,0.548711,63129.0,63115.0,0.0625]
[1721052266986,0.79219,63116.0,63115.0,0.0625]
[1721052267190,0.0839,63126.0,63116.0,0.09042626]
[1721052267541,0.316871,63117.0,63116.0,0.09042626]
[1721052267916,0.498306,63117.0,63116.0,0.09042626]
[1721052268085,0.15844,63115.0,63114.0,0.09042626]
[1721052268284,0.18144,63115.0,63114.0,0.09042626]
[1721052269043,0.17144,63115.0,63114.0,0.09042626]
[1721052269272,0.488321,63115.0,63114.0,0.09042626]
[1721052269909,0.805202,63115.0,63114.0,0.09042626]
[1721052270319,0.811202,63115.0,63114.0,0.09042626]
[1721052270553,0.808202,63115.0,63114.0,0.09042626]
[1721052270888,0.492321,63115.0,63114.0,0.09142626]
[1721052271888,0.488321,63115.0,63114.0,0.09042626]
[1721052272012,0.491321,63115.0,63114.0,0.09042626]
[1721052272810,0.808202,63115.0,63114.0,0.09042626]
[1721052273019,0.811202,63115.0,63114.0,0.09042626]
[1721052273664,0.792227,63113.0,63112.0,0.09042626]
[1721052273840,0.792227,63113.0,63110.0,0.0648]
[1721052273841,0.475351,63111.0,63110.0,0.09042626]
[1721052274042,0.815252,63111.0,63110.0,0.09042626]
[1721052275164,0.815252,63111.0,63110.0,0.09242626]
[1721052275373,0.18145,63111.0,63110.0,0.09242626]
[1721052276463,0.498351,63111.0,63110.0,0.09242626]
[1721052276872,0.498351,63111.0,63110.0,0.002]
[1721052277266,0.498351,63111.0,63110.0,0.004]
[1721052277878,0.023,63111.0,63110.0,0.09042626]
[1721052278086,0.023,63111.0,63110.0,0.41242626]
[1721052278254,0.316868,63118.0,63113.0,0.09042626]
[1721052278255,0.158443,63114.0,63113.0,0.09042626]
[1721052278659,0.181443,63114.0,63113.0,0.09042626]
[1721052278813,0.158445,63113.0,63112.0,0.09042626]
[1721052279218,0.475336,63113.0,63112.0,0.09042626]